bitfinex/quotes_ETHUSD_20250114
["timestamp","ask_amount","ask_price","bid_price","bid_amount"]
[1736848465999,0.43099441,3255.6,3254.7,3.07247]
[1736848466174,1.6186,3256.1,3254.8,3.0723]
[1736848466377,1.6186,3256.1,3254.9,3.07228]
[1736848466378,3.07126,3256.0,3254.9,3.07228]
[1736848466562,0.15188196,3256.3,3255.0,1.53811965]
[1736848466763,3.07089,3256.4,3255.0,1.53811965]
[1736848466964,1.6186,3256.8,3255.0,1.53811965]
[1736848467214,0.16186,3256.7,3255.6,3.07159]
[1736848467365,0.16186,3256.7,3255.7,0.24071227]
[1736848467700,3.23245,3256.7,3255.8,1.5074]
[1736848468101,0.15457046,3256.8,3255.9,0.03071274]
[1736848468277,1.6186,3257.1,3255.9,0.03071274]
[1736848468478,1.6186,3257.1,3255.9,3.10204274]
[1736848469028,1.6186,3257.1,3256.1,3.07108]
[1736848469172,1.6186,3257.1,3256.2,3.07106]
[1736848469378,0.16186,3257.0,3256.2,3.07106]
[1736848470014,3.0,3257.2,3255.9,0.03071274]
[1736848470243,3.06986,3257.5,3256.3,3.07087]
[1736848470430,3.0,3257.4,3256.4,3.10156481]
[1736848470924,1.6186,3257.6,3256.1,0.03070481]
[1736848471121,4.85021,3257.6,3256.2,0.03070368]
[1736848471281,3.0,3257.5,3256.2,0.03070368]
[1736848471615,0.16186,3257.6,3256.7,1.5722]
[1736848471828,1.6622,3258.0,3256.7,1.5722]
[1736848472027,0.55,3257.9,3256.7,1.5722]
[1736848472180,3.06976,3257.6,3256.7,1.5722]
[1736848472920,0.55,3257.2,3256.7,1.5722]
[1736848473089,3.0,3257.8,3256.1,0.03070531]
[1736848473290,3.0,3257.8,3255.2,4.02626128]
[1736848473291,3.0,3256.9,3255.9,0.21]
[1736848473591,3.07094,3256.4,3255.9,0.21]
[1736848473789,3.07072,3256.6,3255.9,0.21]
[1736848474118,3.62098,3256.3,3255.9,0.21]
[1736848474321,3.07079,3256.5,3255.9,0.21]
[1736848474478,0.307079,3256.4,3255.9,0.21]
[1736848474683,0.55,3256.3,3255.9,0.21]
[1736848475087,3.0704,3257.0,3255.9,0.21]
[1736848475306,3.0,3256.9,3255.9,0.21]
[1736848475507,0.55,3256.8,3255.9,3.28132]
[1736848475720,1.21204,3256.8,3255.9,3.28132]
[1736848476288,1.21204,3256.8,3255.9,0.21]
[1736848476504,0.66204,3256.8,3256.1,1.5503]
[1736848476704,4.60086,3257.5,3256.2,0.03070933]
[1736848477038,3.07011,3257.3,3256.1,4.62137]
[1736848477442,3.62017,3257.2,3256.1,4.62137]
[1736848477638,0.55,3257.2,3256.1,1.5503]
[1736848477841,0.55,3256.3,3255.7,1.5503]
[1736848478044,3.0711,3256.2,3255.5,0.21]
[1736848478343,0.30711,3256.1,3255.5,0.21]
[1736848478544,1.531,3256.6,3255.6,0.03071437]
[1736848478923,0.55,3256.5,3255.6,3.07159]
[1736848479117,0.55,3256.5,3255.6,3.10230286]
[1736848479348,0.55,3256.5,3255.8,3.07142]
[1736848479514,3.0705,3256.8,3256.0,1.5503]
[1736848480011,0.55,3256.7,3256.0,1.5503]
[1736848480421,0.55,3256.4,3255.8,0.3079]
[1736848480617,3.62106,3256.2,3255.8,0.3079]
[1736848480817,3.62106,3256.2,3254.8,1.5503]
[1736848480818,3.55,3255.8,3254.8,1.5503]
[1736848481022,0.55,3255.2,3254.4,1.7603]
[1736848481349,0.55,3255.4,3254.4,1.7603]
[1736848481652,1.531,3255.5,3254.4,1.7603]
[1736848482013,3.62197,3255.3,3254.4,1.7603]
[1736848482251,3.62183,3255.4,3254.4,1.7603]
[1736848482416,0.515283,3255.3,3254.4,1.7603]
[1736848482608,3.07163,3255.6,3254.5,0.03072466]
[1736848482836,3.07163,3255.6,3254.6,0.202]
[1736848483108,0.662134,3255.7,3254.6,0.202]
[1736848483450,0.55,3255.3,3254.6,0.202]
[1736848483648,0.55,3255.8,3254.6,0.202]
[1736848483810,3.07155,3255.7,3254.7,3.10317323]
[1736848484010,0.55,3255.6,3254.7,3.10317323]
[1736848484333,1.531,3256.3,3254.8,1.5503]
[1736848484505,3.07126,3256.0,3255.1,3.072]
[1736848485045,0.55,3255.8,3254.9,3.07227]
[1736848485258,0.55,3255.8,3255.0,3.07214]
[1736848485454,0.55,3255.9,3255.0,3.07214]
[1736848485652,0.4531,3256.2,3255.1,1.5503]
[1736848485946,3.07118,3256.1,3255.2,3.07199]
[1736848486143,3.0,3256.2,3255.2,3.07199]
[1736848486751,0.55,3256.2,3255.3,3.07183]
[1736848487052,1.531,3256.3,3255.4,3.0718]
[1736848487648,0.55,3256.2,3255.4,3.0718]
[1736848487811,0.55,3256.0,3255.1,1.5503]
[1736848488012,0.55,3255.7,3255.1,1.5503]
[1736848488727,3.07201,3255.2,3254.6,1.5503]
[1736848488923,3.07201,3255.2,3254.3,3.07282]
[1736848489135,3.07201,3255.2,3254.2,1.7523]
[1736848489136,0.55,3254.8,3254.2,1.7523]
[1736848489656,0.55,3255.1,3253.9,0.202]
[1736848489841,3.07283,3254.4,3253.9,0.202]
[1736848490044,3.62234,3254.9,3253.9,0.202]
[1736848490266,0.55,3254.5,3253.9,0.202]
[1736848490861,1.531,3255.2,3254.2,3.07287]
[1736848491059,1.531,3255.2,3254.1,1.5503]
[1736848491259,3.07221,3255.0,3254.1,1.5503]
[1736848491726,1.531,3255.2,3254.1,1.5503]
[1736848491930,3.07139,3255.9,3254.1,1.5503]
[1736848491931,1.531,3255.9,3254.4,3.07274]
[1736848492141,3.07149,3255.8,3254.5,0.03072484]
[1736848492352,3.07194,3255.3,3254.4,3.07274]
[1736848492553,0.55,3255.6,3254.5,0.03072351]
[1736848492753,0.55,3255.6,3254.1,1.5503]
[1736848492754,0.55,3255.1,3254.2,3.07286]
[1736848493068,0.55,3255.4,3254.2,0.03072464]
[1736848493069,3.07182,3255.4,3254.2,0.03072464]
[1736848493244,0.55,3255.3,3254.5,3.07265]
[1736848493439,1.531,3255.8,3254.7,1.5503]
[1736848493639,3.07174,3255.5,3254.7,1.5503]
[1736848493844,0.55,3255.4,3254.7,1.5503]
[1736848494768,1.531,3255.8,3254.7,1.58102218]
[1736848494956,1.531,3255.8,3254.8,0.3079]
[1736848495333,6.07163,3255.6,3254.8,0.3079]
[1736848495480,0.55,3255.1,3254.8,0.3079]
[1736848495851,3.07128,3256.0,3254.9,2.09092446]
[1736848496078,0.2081,3256.1,3254.9,5.16316446]
[1736848496281,0.55,3256.0,3254.9,2.0602]
[1736848496480,0.55,3255.5,3254.9,2.0602]
[1736848497789,0.55,3255.3,3254.9,2.0602]
[1736848497971,0.55,3255.4,3254.9,2.0602]
[1736848498350,0.55,3255.5,3254.9,2.0602]
[1736848498758,0.55,3255.4,3254.9,2.0602]
[1736848498962,0.55,3255.7,3254.9,0.5099]
[1736848499183,0.55,3255.3,3254.9,0.5099]
[1736848499563,0.55,3255.4,3254.9,0.5099]
[1736848499772,3.62183,3255.4,3254.9,0.5099]
[1736848499973,0.515283,3255.3,3254.9,0.5099]
[1736848500207,3.62219,3255.0,3254.9,0.3079]
[1736848500514,0.55,3254.5,3253.4,1.5086]
[1736848500807,3.55,3254.5,3253.4,1.5086]
[1736848500979,0.55,3253.9,3253.4,1.5086]
[1736848501181,0.55,3253.9,3253.3,0.202]
[1736848501182,0.55,3253.8,3253.3,0.202]
[1736848501476,3.6238,3253.3,3253.2,0.3079]
[1736848502396,0.55,3253.2,3252.8,0.3079]
[1736848502564,3.62394,3253.2,3252.7,0.202]
[1736848502999,0.55,3253.0,3252.3,1.7106]
[1736848503208,0.55,3253.0,3252.4,0.3079]
[1736848503926,3.62455,3252.5,3252.4,0.3079]
[1736848504122,3.07469,3252.4,3251.7,1.5086]
[1736848504417,3.07477,3252.3,3251.7,1.5086]
[1736848504629,2.1132,3252.3,3251.6,0.202]
[1736848504830,0.55,3252.1,3251.6,0.202]
[1736848504968,3.62497,3252.1,3251.6,0.202]
[1736848505168,3.62497,3252.1,3251.3,1.5086]
[1736848505627,3.07506,3252.0,3251.3,1.5086]
[1736848505778,0.55,3252.1,3251.3,1.5086]
[1736848506103,3.07524,3251.8,3251.3,1.5086]
[1736848506311,0.713618,3252.0,3250.7,1.5086]
[1736848506312,3.62512,3251.9,3250.7,1.5086]
[1736848506492,3.07532,3251.7,3250.7,4.61560107]
[1736848506690,3.55,3252.0,3250.7,1.5086]
[1736848506976,3.07562,3251.4,3250.6,0.202]
[1736848507167,3.07573,3251.3,3250.5,0.203]
[1736848507374,0.55,3250.9,3250.2,0.0568352]
[1736848507606,6.07569,3251.3,3250.2,0.0568352]
[1736848507774,4.02626128,3251.4,3250.2,0.0568352]
[1736848507775,1.01019513,3251.2,3250.2,0.0568352]
[1736848507969,3.07614,3250.9,3250.2,0.0568352]
[1736848508778,3.07616,3250.8,3250.2,0.0568352]
[1736848509303,0.55,3251.2,3250.2,0.0568352]
[1736848509472,1.5632,3251.5,3250.4,1.5086]
[1736848509473,4.63871,3251.5,3250.4,1.5086]
[1736848509673,3.07569,3251.4,3250.2,0.0568352]
[1736848509879,3.07628,3250.7,3250.2,0.0568352]
[1736848510086,3.07639,3250.6,3250.2,0.0568352]
[1736848511421,0.55,3250.9,3250.2,0.0568352]
[1736848511629,3.07653,3250.5,3250.2,0.0568352]
[1736848511782,0.307653,3250.4,3250.2,0.0568352]
[1736848511982,6.62663,3250.3,3250.2,0.0568352]
[1736848513299,3.0,3250.3,3250.2,5.2e-06]
[1736848514206,3.07626,3250.7,3250.2,5.2e-06]
[1736848514583,3.07653,3250.5,3250.2,5.2e-06]
[1736848514784,3.07637,3250.6,3250.2,5.2e-06]
[1736848514989,0.463957,3250.6,3250.2,5.2e-06]
[1736848515189,0.55,3250.4,3250.2,5.2e-06]
[1736848515386,3.62658,3250.4,3250.2,5.2e-06]
[1736848515682,3.540327,3250.6,3250.2,5.2e-06]
[1736848515890,0.463957,3250.6,3250.2,5.2e-06]
[1736848516111,0.3463957,3250.5,3250.2,5.2e-06]
[1736848516489,3.07645,3250.5,3250.2,5.2e-06]
[1736848517017,3.0,3250.7,3250.2,5.2e-06]
[1736848517319,3.07645,3250.5,3250.2,5.2e-06]
[1736848517688,1.5632,3250.8,3250.2,5.2e-06]
[1736848518000,3.07587,3251.2,3250.2,5.2e-06]
[1736848518182,3.4298459,3251.2,3250.2,5.2e-06]
[1736848518390,0.3539759,3251.2,3250.2,5.2e-06]
[1736848518724,3.07586,3251.2,3250.2,5.2e-06]
[1736848519025,1.5713,3251.6,3250.5,3.07644]
[1736848519234,7.10120128,3252.1,3250.2,5.2e-06]
[1736848519235,1.5713,3252.1,3250.6,1.6196]
[1736848519442,1.5713,3252.1,3250.6,4.69594]
[1736848519735,3.08262,3251.9,3250.6,1.6196]
[1736848519899,0.55,3251.1,3250.2,1.6196052]
[1736848520102,3.07598,3251.0,3250.2,1.9275052]
[1736848520307,3.0,3251.0,3250.2,0.3079052]
[1736848520518,3.07641,3250.6,3250.2,0.3079052]
[1736848520685,6.07663,3250.3,3250.2,0.3079052]
[1736848520883,6.684293,3250.3,3250.2,5.2e-06]
[1736848522541,7.234293,3250.3,3250.2,5.2e-06]
[1736848523093,8.813093,3250.3,3250.2,5.2e-06]
[1736848523618,8.805593,3250.3,3250.2,5.2e-06]
[1736848524496,8.255593,3250.3,3250.2,5.2e-06]
[1736848524892,8.805593,3250.3,3250.2,5.2e-06]
[1736848525378,8.813093,3250.3,3250.2,5.2e-06]
[1736848528752,8.805593,3250.3,3250.2,5.2e-06]
[1736848530053,0.607663,3250.3,3250.2,5.2e-06]
[1736848530254,1.5786,3250.7,3250.2,5.2e-06]
[1736848530428,3.0,3250.6,3250.2,5.2e-06]
[1736848530629,1.5786,3250.7,3250.2,5.2e-06]
[1736848531351,1.5786,3251.1,3250.2,5.2e-06]
[1736848531649,3.07587,3251.2,3250.2,5.2e-06]
[1736848531650,3.07587,3251.2,3250.2,3.0767252]
[1736848531850,3.307587,3251.1,3250.2,3.0767252]
[1736848532051,1.5786,3251.5,3250.2,5.2e-06]
[1736848532252,1.5786,3251.5,3250.4,3.07645]
[1736848532253,3.07564,3251.4,3250.4,3.07645]
[1736848532443,3.07564,3251.4,3250.3,3.27263]
[1736848532757,1.5786,3251.3,3250.2,5.2e-06]
[1736848532924,3.07627,3250.7,3250.5,0.27545565]
[1736848533123,3.07635,3250.6,3250.5,0.27545565]
[1736848534312,3.07635,3250.6,3250.2,5.2e-06]
[1736848534527,0.55,3250.9,3250.2,5.2e-06]
[1736848534751,3.07626,3250.7,3250.2,5.2e-06]
[1736848534940,3.07604,3251.0,3250.2,5.2e-06]
[1736848535141,3.0,3250.8,3250.2,5.2e-06]
[1736848535458,1.5786,3251.3,3250.3,0.2762547]
[1736848535752,4.65395,3251.7,3250.4,1.6016]
[1736848535913,3.0,3251.1,3250.4,1.6016]
[1736848536753,3.07568,3251.4,3250.5,0.2762547]
[1736848537328,3.07571,3251.3,3250.6,0.2765242]
[1736848537755,3.0,3251.4,3250.6,0.2765242]
[1736848537957,3.07491,3252.2,3250.7,1.90861908]
[1736848538256,3.07515,3251.9,3250.9,3.07605]
[1736848538413,3.0,3251.8,3251.0,0.196]
[1736848538614,1.08128074,3252.1,3251.0,0.196]
[1736848538818,3.0757,3251.3,3251.1,0.2762547]
[1736848539567,3.07578,3251.2,3251.1,0.2762547]
[1736848539724,3.690917,3251.2,3251.1,0.2762547]
[1736848539913,3.07588,3251.1,3250.7,1.6016]
[1736848540555,3.07626,3250.7,3250.3,0.196]
[1736848540916,0.615137,3251.2,3250.2,1.6016052]
[1736848541123,3.07635,3250.6,3250.2,1.6016052]
[1736848541417,0.615137,3251.2,3250.2,1.6016052]
[1736848541627,0.6690887,3251.1,3250.2,1.6016052]
[1736848541824,3.07616,3250.8,3250.2,1.6016052]
[1736848542225,3.07626,3250.7,3250.2,1.6016052]
[1736848542427,3.07609,3250.9,3250.2,1.6016052]
[1736848542649,3.6690887,3251.1,3250.3,0.27674754]
[1736848542955,3.07584,3251.2,3250.3,0.27674754]
[1736848543135,3.07597,3251.0,3250.3,0.27674754]
[1736848543339,3.07635,3250.7,3250.3,0.27674754]
[1736848543671,3.07615,3250.9,3250.3,0.27674754]
[1736848543872,3.07615,3250.9,3250.2,5.2e-06]
[1736848544037,0.307615,3250.8,3250.2,5.2e-06]
[1736848544517,3.07619,3250.8,3250.2,5.2e-06]
[1736848544921,3.07591,3251.1,3250.2,5.2e-06]
[1736848545124,3.07663,3250.3,3250.2,5.2e-06]
[1736848547640,6.07663,3250.3,3250.2,5.2e-06]
[1736848548023,3.0,3250.3,3250.2,5.2e-06]
[1736848548466,3.07621,3250.8,3250.2,5.2e-06]
[1736848548628,3.07628,3250.7,3250.2,5.2e-06]
[1736848548832,3.0,3250.6,3250.2,5.2e-06]
[1736848549365,0.51887927,3250.8,3250.3,1.6481]
[1736848549670,3.59509927,3250.8,3250.3,1.6481]
[1736848549966,3.07627,3250.7,3250.3,1.6481]
[1736848550143,3.41543963,3250.7,3250.3,1.6481]
[1736848552067,1.501,3251.3,3250.3,1.6481]
[1736848552266,3.4949504,3251.6,3250.3,4.7247]
[1736848552267,3.0758,3251.2,3250.3,4.7247]
[1736848553171,3.07588,3251.1,3250.3,1.6481]
[1736848553734,0.63004353,3251.4,3250.3,1.6481]
[1736848553939,3.07596,3251.1,3250.3,1.6481]
[1736848554174,3.683556,3251.1,3250.3,1.6481]
[1736848554350,3.076,3251.0,3250.3,1.6481]
[1736848554880,6.683516,3251.1,3250.3,1.6481]
[1736848555084,3.607596,3251.1,3250.3,1.6481]
[1736848555440,3.07611,3250.9,3250.3,1.6481]
[1736848555607,3.607596,3251.1,3250.3,1.6481]
[1736848555608,6.07595,3251.1,3250.3,1.6481]
[1736848556777,3.07595,3251.1,3250.3,1.6481]
[1736848558593,3.07573,3251.3,3250.4,0.3083]
[1736848558774,3.07513,3251.9,3250.5,1.5095]
[1736848558975,3.07557,3251.5,3250.5,5.07902652]
[1736848559711,3.07566,3251.4,3250.5,5.07902652]
[1736848559920,4.10176722,3251.6,3250.5,1.8178]
[1736848560118,3.07618,3250.8,3250.5,1.5095]
[1736848560333,3.0,3250.9,3250.2,0.3083052]
[1736848560468,3.07663,3250.3,3250.2,5.2e-06]
[1736848561124,6.07663,3250.3,3250.2,5.2e-06]
[1736848561325,10.3517634,3250.3,3250.2,5.2e-06]
[1736848562186,10.9017634,3250.3,3250.2,5.2e-06]
[1736848562478,12.5519634,3250.3,3250.2,5.2e-06]
[1736848562680,3.07787,3249.0,3248.9,0.3083]
[1736848562882,3.07813,3248.8,3248.5,1.579]
[1736848563095,3.07823,3248.7,3248.5,1.579]
[1736848563293,3.07835,3248.5,3248.0,1.579]
[1736848563493,3.07824,3248.6,3248.0,1.579]
[1736848563668,0.607813,3248.8,3248.0,1.579]
[1736848563870,1.6502,3249.4,3248.0,1.579]
[1736848563871,0.61864753,3249.2,3248.0,1.579]
[1736848564173,3.0,3249.4,3248.2,1.579]
[1736848564481,3.07808,3248.8,3248.2,1.579]
[1736848564683,3.0,3249.1,3248.2,1.579]
[1736848564684,3.07843,3248.5,3248.2,1.579]
[1736848564880,3.4949504,3248.9,3248.2,1.579]
[1736848564881,3.07819,3248.7,3248.2,1.579]
[1736848565085,0.307819,3248.6,3248.2,1.579]
[1736848565308,3.07794,3249.0,3248.2,1.579]
[1736848565505,3.0,3249.2,3248.2,1.579]
[1736848565809,3.07795,3249.0,3248.2,1.579]
[1736848566005,3.68850362,3249.3,3248.2,1.579]
[1736848566006,0.61088362,3249.3,3248.2,1.579]
[1736848566205,3.0,3249.4,3248.3,3.07852]
[1736848566397,3.0,3249.4,3248.4,4.65735]
[1736848566398,3.46502,3249.4,3248.4,4.65735]
[1736848566597,6.5720704,3249.8,3248.4,4.65735]
[1736848566598,3.4949504,3250.1,3248.7,1.579]
[1736848566907,0.62740115,3250.7,3249.4,3.4949504]
[1736848567109,3.07625,3250.8,3249.6,1.579]
[1736848567110,3.07624,3250.8,3249.6,1.579]
[1736848567284,3.07598,3251.0,3250.0,3.0769]
[1736848567486,0.472618,3251.0,3250.1,1.579]
[1736848567914,3.07582,3251.2,3250.1,1.579]
[1736848568207,3.0756,3251.4,3250.3,3.07661]
[1736848568509,0.81456804,3251.8,3250.3,3.07661]
[1736848568510,0.81456804,3251.8,3250.5,3.07644]
[1736848568808,3.0,3251.4,3250.5,3.07644]
[1736848569012,3.07556,3251.5,3250.5,3.07644]
[1736848569173,3.07556,3251.5,3250.5,3.541984]
[1736848570311,4.41724068,3251.8,3250.5,0.465544]
[1736848570609,3.07555,3251.5,3250.5,0.465544]
[1736848570795,3.07555,3251.5,3250.5,3.541954]
[1736848570997,3.07588,3251.1,3250.4,0.183]
[1736848571201,3.0761,3250.9,3250.4,0.183]
[1736848571375,3.0761,3250.9,3250.3,1.579]
[1736848571376,3.0,3251.1,3250.3,1.579]
[1736848571706,3.07647,3250.5,3250.2,0.183]
[1736848571876,0.46502,3251.0,3250.2,0.183]
[1736848571877,3.0766,3250.4,3250.2,0.183]
[1736848572073,0.46502,3251.0,3250.2,0.183]
[1736848572273,3.07635,3250.6,3250.2,0.183]
[1736848572499,3.07619,3250.8,3250.2,0.183]
[1736848572707,3.383909,3250.7,3250.2,0.183]
[1736848573704,0.46502,3251.0,3250.2,0.183]
[1736848573903,0.15700599,3252.1,3250.2,0.183]
[1736848573904,1.6502,3251.6,3250.2,0.183]
[1736848574115,3.07582,3251.2,3250.3,1.579]
[1736848574320,3.07589,3251.1,3250.3,1.579]
[1736848574482,3.07604,3251.0,3250.3,1.579]
[1736848574688,0.81456804,3251.8,3250.3,1.579]
[1736848575011,3.07554,3251.5,3250.6,1.6292]
[1736848575187,3.07561,3251.4,3250.6,1.6292]
[1736848575687,3.0757,3251.3,3250.6,1.6292]
[1736848575891,3.07561,3251.4,3250.6,1.6292]
[1736848576185,0.55,3251.7,3250.6,1.6292]
[1736848576385,3.07602,3251.0,3250.6,1.6292]
[1736848576807,3.62576,3251.3,3250.6,1.6292]
[1736848577121,3.07569,3251.3,3250.6,1.6292]
[1736848577321,0.55,3251.4,3250.6,1.6292]
[1736848577525,3.07578,3251.2,3250.6,1.6292]
[1736848577823,0.307578,3251.1,3250.6,1.6292]
[1736848578028,0.355,3251.6,3250.6,1.6292]
[1736848578399,0.15022337,3252.4,3250.6,1.6292]
[1736848578400,1.6339,3252.4,3250.6,1.6292]
[1736848578712,3.07492,3252.2,3251.2,3.07575]
[1736848578887,3.07492,3252.2,3251.3,1.5741]
[1736848579394,3.0,3252.1,3251.3,1.5741]
[1736848579587,0.55,3252.4,3251.3,1.5741]
[1736848579823,0.41696353,3252.3,3251.3,1.5741]
[1736848580449,3.07508,3252.0,3251.3,1.5741]
[1736848580599,3.0,3252.1,3251.3,1.5741]
[1736848580808,3.07443,3252.7,3251.3,4.64978]
[1736848581190,0.55,3252.6,3251.3,4.64978]
[1736848581547,3.07455,3252.6,3251.4,0.03075377]
[1736848581837,3.07455,3252.6,3251.0,3.07589]
[1736848581838,5.66908735,3253.7,3252.0,1.5741]
[1736848582002,3.07428,3252.8,3252.1,0.182]
[1736848582536,3.55,3253.1,3252.1,0.182]
[1736848582694,3.07418,3252.9,3252.1,0.182]
[1736848582897,3.0,3253.1,3252.1,0.182]
[1736848582898,3.07399,3253.1,3252.1,0.182]
[1736848583111,3.0746,3252.5,3252.1,0.182]
[1736848583323,3.38211,3252.4,3252.1,0.182]
[1736848584620,3.38211,3252.4,3250.9,5.0]
[1736848584621,0.55,3252.3,3250.9,3.07606]
[1736848584823,0.55,3252.3,3250.8,1.5741]
[1736848584824,3.07536,3251.7,3251.3,0.182]
[1736848585135,3.382956,3251.6,3251.3,0.182]
[1736848585335,0.307536,3251.6,3251.3,0.182]
[1736848585581,3.07559,3251.4,3251.3,0.182]
[1736848586084,3.0,3251.4,3250.8,1.5741]
[1736848586389,3.60554927,3251.8,3250.8,1.5741]
[1736848586527,3.07579,3251.2,3250.8,1.5741]
[1736848586983,0.55,3251.6,3250.8,1.5741]
[1736848587134,3.07568,3251.4,3250.8,1.5741]
[1736848587889,3.07536,3251.7,3250.8,1.5741]
[1736848588033,3.07541,3251.6,3250.8,1.5741]
[1736848588235,3.07549,3251.6,3250.8,1.5741]
[1736848588536,3.07526,3251.8,3250.8,1.5741]
[1736848588754,3.07597,3251.0,3250.8,1.5741]
[1736848589178,3.55,3251.5,3250.8,1.5741]
[1736848589404,3.07607,3250.9,3250.8,1.5741]
[1736848589695,3.07607,3250.9,3250.4,1.7561]
[1736848591915,0.55,3251.2,3250.4,1.7561]
[1736848592213,3.0,3251.0,3250.4,1.7561]
[1736848592567,3.0,3251.0,3250.4,1.5741]
[1736848594172,0.662573,3251.1,3250.4,1.5741]
[1736848594367,3.0,3251.4,3250.4,4.65063]
[1736848594568,0.61606993,3251.6,3250.4,1.5741]
[1736848594768,3.07561,3251.4,3250.4,4.65063]
[1736848595024,0.362526,3251.7,3250.4,4.65063]
[1736848595025,0.362526,3251.7,3250.4,1.5741]
[1736848595183,0.362526,3251.7,3250.7,3.0762]
[1736848595184,3.0,3251.5,3250.7,3.0762]
[1736848595369,0.607541,3251.4,3250.7,3.0762]
[1736848596670,0.607541,3251.4,3250.8,3.07614]
[1736848596875,3.07337,3253.8,3250.9,4.72219]
[1736848596876,0.55,3252.0,3250.9,4.72219]
[1736848597189,0.55,3251.8,3250.9,4.72219]
[1736848597389,3.07454,3252.6,3251.4,3.07553]
[1736848597691,3.07466,3252.4,3251.3,3.07559]
[1736848597892,3.49415865,3252.4,3251.3,3.07559]
[1736848598105,2.1953,3251.9,3251.2,1.6462]
[1736848598310,0.55,3251.8,3251.2,1.6462]
[1736848598485,3.07513,3251.9,3251.2,1.6462]
[1736848598684,3.07495,3252.1,3251.2,1.6462]
[1736848598898,3.07508,3252.0,3251.2,1.6462]
[1736848599169,0.307508,3251.9,3251.2,1.6462]
[1736848599809,1.6453,3252.6,3251.3,0.03075786]
[1736848599966,3.49415865,3252.8,3251.6,1.6462]
[1736848600171,3.0745,3252.6,3251.6,4.7216]
[1736848600416,7.19898268,3252.8,3251.6,4.7216]
[1736848600642,0.88442827,3252.7,3251.6,5.19376]
[1736848600838,3.07477,3252.3,3251.6,1.6462]
[1736848601242,0.55,3252.3,3251.6,1.6462]
[1736848601435,3.07514,3251.9,3251.2,1.8232]
[1736848602634,3.07504,3252.0,3251.2,1.8232]
[1736848602837,0.55,3252.1,3251.2,1.8232]
[1736848603163,3.07513,3251.9,3251.2,1.8232]
[1736848604160,3.07497,3252.1,3251.2,1.8232]
[1736848604324,3.88442827,3252.7,3251.3,0.03075596]
[1736848604511,3.07419,3252.9,3251.5,1.6462]
[1736848604713,3.07419,3252.9,3251.8,3.0752]
[1736848605217,3.68189224,3252.8,3251.9,1.6462]
[1736848605413,0.55,3252.7,3251.9,1.6462]
[1736848605644,0.42318922,3252.6,3251.9,1.6462]
[1736848606369,3.07487,3252.2,3251.5,1.6462]
[1736848607518,3.0,3252.3,3251.5,1.6462]
[1736848607723,0.62314795,3252.8,3251.6,1.6462]
[1736848608026,3.22973765,3254.1,3251.5,0.03075418]
[1736848608027,3.07266,3254.5,3252.8,3.07425]
[1736848608218,0.60404999,3254.0,3252.9,1.6462]
[1736848608436,0.60404999,3254.0,3252.9,4.75108179]
[1736848608760,3.07286,3254.3,3253.1,3.07394]
[1736848608937,3.65670186,3254.2,3253.2,3.07386]
[1736848609138,3.65670186,3254.2,3253.0,1.6462]
[1736848609139,0.65670186,3254.2,3253.0,1.6462]
[1736848609334,1.6453,3253.8,3253.0,1.6462]
[1736848609668,0.55,3253.1,3252.6,1.6462]
[1736848609849,3.49415865,3253.2,3252.2,1.6462]
[1736848609850,3.07412,3253.0,3252.2,1.6462]
[1736848610029,3.381612,3252.9,3252.2,1.6462]
[1736848610357,0.307412,3252.9,3252.2,1.6462]
[1736848611155,3.381592,3252.9,3252.2,1.6462]
[1736848611364,3.55,3252.8,3251.7,1.6462]
[1736848611526,3.07453,3252.6,3251.7,1.6462]
[1736848611730,0.307453,3252.5,3251.7,1.6462]
[1736848612282,3.07466,3252.4,3251.7,1.6462]
[1736848612587,3.07485,3252.2,3251.7,1.6462]
[1736848612979,0.55,3252.5,3251.7,1.6462]
[1736848613275,3.62477,3252.3,3251.7,1.6462]
[1736848613460,3.0,3252.2,3251.7,1.6462]
[1736848613648,0.662477,3252.1,3251.7,1.6462]
[1736848614865,3.07488,3252.2,3251.7,1.6462]
[1736848615170,6.07498,3252.1,3251.7,1.6462]
[1736848615536,3.07504,3252.0,3251.7,1.6462]
[1736848615740,3.07504,3252.0,3251.3,1.6462]
[1736848615976,0.55,3252.0,3251.3,1.6462]
[1736848616275,0.912497,3252.0,3251.3,1.6462]
[1736848617035,3.987607,3252.0,3251.3,1.6462]
[1736848619272,3.0,3252.3,3251.5,3.07543]
[1736848619472,1.6453,3253.0,3251.8,1.6462]
[1736848619676,4.71943,3253.0,3251.8,1.6462]
[1736848619974,3.07472,3252.4,3251.8,1.6462]
[1736848620197,3.55,3252.6,3251.1,1.621]
[1736848620408,3.0751,3252.0,3251.1,1.621]
[1736848620540,4.57901,3252.7,3251.2,0.46969]
[1736848620902,3.07481,3252.3,3251.5,1.621]
[1736848621193,3.07503,3252.0,3251.5,1.621]
[1736848621478,3.55,3252.1,3251.5,1.621]
[1736848621686,3.0,3252.2,3251.5,1.621]
[1736848622355,3.62458,3252.5,3251.5,1.621]
[1736848622552,0.55,3252.3,3251.5,1.621]
[1736848622759,3.55,3252.3,3251.5,1.621]
[1736848623682,3.0,3252.3,3251.5,1.621]
[1736848624194,3.07475,3252.3,3251.5,1.621]
[1736848624599,3.0,3252.1,3251.5,1.621]
[1736848624801,0.607491,3252.0,3251.5,1.621]
[1736848626799,3.737128,3252.4,3251.5,1.621]